bitfinex/quotes_SOLUSD_20260223
["timestamp","ask_amount","ask_price","bid_price","bid_amount"]
[1771840117264,9.91607894,80.32,80.28,0.2]
[1771840117265,9.91607894,80.3,80.28,0.2]
[1771840117471,0.66839675,80.31,80.281,0.86792479]
[1771840118165,0.66349643,80.309,80.281,0.86792479]
[1771840118363,4.35733045,80.324,80.291,0.86792479]
[1771840118563,4.35733045,80.324,80.29,9.91607894]
[1771840118564,0.66349643,80.336,80.301,0.86792479]
[1771840118873,0.66349643,80.329,80.291,0.86792479]
[1771840119170,9.91607894,80.32,80.282,0.86792479]
[1771840119601,0.6586524,80.326,80.291,0.86792479]
[1771840119871,9.91607894,80.32,80.291,0.86792479]
[1771840120471,0.653864,80.319,80.291,0.86792479]
[1771840121168,16.14139865,80.337,80.301,0.86792479]
[1771840121376,0.64913061,80.329,80.301,0.86792479]
[1771840121555,0.64913061,80.329,80.291,0.86792479]
[1771840121757,0.64913061,80.329,80.291,12.45469604]
[1771840121960,0.64913061,80.329,80.292,0.86792479]
[1771840122273,0.64913061,80.329,80.28,0.2]
[1771840122274,0.64445158,80.319,80.285,12.45547785]
[1771840122571,47.26031023,80.337,80.282,0.86792479]
[1771840122572,10.56053052,80.31,80.282,0.86792479]
[1771840122949,9.91607894,80.31,80.282,0.86792479]
[1771840123174,0.63982629,80.318,80.284,0.86792479]
[1771840123349,0.63982629,80.309,80.28,0.2]
[1771840124372,0.63982629,80.309,80.28,1.06792479]
[1771840126071,9.91607894,80.31,80.282,0.86792479]
[1771840126972,12.45125447,80.314,80.282,0.86792479]
[1771840127173,9.91607894,80.31,80.282,0.86792479]
[1771840128687,12.45190451,80.309,80.282,0.86792479]
[1771840128983,0.61316912,80.299,80.28,0.2]
[1771840129170,9.91607894,80.29,80.28,0.2]
[1771840129379,0.61316912,80.299,80.28,0.2]
[1771840129760,9.91607894,80.29,80.28,0.2]
[1771840130465,0.61316912,80.299,80.28,0.2]
[1771840130466,12.4545229,80.293,80.28,0.2]
[1771840131081,9.91607894,80.29,80.28,0.2]
[1771840131285,3.97931202,80.29,80.26,0.8758296]
[1771840131469,3.97931202,80.28,80.26,0.8758296]
[1771840131663,0.60051763,80.289,80.26,0.8758296]
[1771840132280,0.60051763,80.289,80.261,13.33518096]
[1771840132479,0.60051763,80.289,80.262,0.8758296]
[1771840132677,3.97931202,80.3,80.253,0.8758296]
[1771840132882,0.59639697,80.299,80.261,0.8758296]
[1771840133187,0.59232364,80.308,80.261,0.8758296]
[1771840133389,3.97931202,80.31,80.271,0.8758296]
[1771840133687,3.97931202,80.31,80.281,0.8758296]
[1771840134386,3.97931202,80.31,80.283,0.8758296]
[1771840135395,9.9438631,80.31,80.283,0.8758296]
[1771840136290,10.52424532,80.33,80.291,0.8758296]
[1771840136591,22.97296773,80.33,80.293,0.8758296]
[1771840136792,9.9438631,80.32,80.293,0.8758296]
[1771840136970,9.9438631,80.32,80.262,49.8367278]
[1771840136971,9.9438631,80.31,80.288,12.4550624]
[1771840137171,9.9438631,80.3,80.277,0.8758296]
[1771840137392,9.9438631,80.29,80.268,0.8758296]
[1771840137574,0.57649284,80.307,80.27,0.8758296]
[1771840137770,9.9438631,80.3,80.27,0.8758296]
[1771840138791,8.70227649,80.3,80.272,0.8758296]
[1771840139373,13.02876755,80.307,80.272,0.8758296]
[1771840139573,8.70227649,80.3,80.272,0.8758296]
[1771840140781,0.56509067,80.315,80.274,0.8758296]
[1771840140972,0.1,80.39,80.273,43.60121085]
[1771840140973,6.50259138,80.343,80.301,0.8758296]
[1771840141176,6.50259138,80.343,80.321,0.8758296]
[1771840141478,0.56137693,80.339,80.313,0.8758296]
[1771840141678,0.56137693,80.347,80.313,0.8758296]
[1771840142590,8.70227649,80.34,80.313,0.8758296]
[1771840142994,0.55770584,80.355,80.32,8.70227649]
[1771840143294,0.55770584,80.364,80.33,8.70227649]
[1771840143492,12.44393098,80.361,80.33,8.70227649]
[1771840145302,8.70227649,80.34,80.314,12.45112931]
[1771840145903,8.70227649,80.34,80.313,0.8758296]
[1771840146079,8.70227649,80.33,80.313,0.8758296]
[1771840146398,8.70227649,80.34,80.307,0.8758296]
[1771840147184,12.44740969,80.338,80.307,0.8758296]
[1771840147384,12.44740969,80.338,80.308,12.45205957]
[1771840147583,12.44740969,80.338,80.309,0.8758296]
[1771840148288,12.44740969,80.338,80.272,99.66088866]
[1771840148289,8.69519203,80.33,80.301,0.8758296]
[1771840148488,0.53654802,80.329,80.301,0.8758296]
[1771840148796,8.69519203,80.32,80.301,0.8758296]
[1771840149191,0.53654802,80.329,80.293,0.8758296]
[1771840149688,12.98212138,80.328,80.293,0.8758296]
[1771840150002,0.53316212,80.327,80.295,0.8758296]
[1771840154705,12.44926922,80.326,80.297,0.8758296]
[1771840157012,12.44926922,80.326,80.299,0.8758296]
[1771840157526,8.69519203,80.34,80.301,0.76877471]
[1771840158591,21.14232135,80.34,80.303,0.76522553]
[1771840159711,0.49544053,80.339,80.305,0.76522553]
[1771840160087,12.44712932,80.34,80.305,0.76522553]
[1771840160293,4.18636081,80.354,80.321,0.76522553]
[1771840160606,8.69519203,80.35,80.321,0.76522553]
[1771840160802,0.49252679,80.349,80.321,0.76522553]
[1771840162097,12.4458605,80.348,80.321,0.76522553]
[1771840163516,12.4458605,80.348,80.322,12.44988919]
[1771840163811,12.4458605,80.348,80.322,0.76522553]
[1771840166725,3.69383402,80.364,80.33,8.69519203]
[1771840167016,3.69383402,80.364,80.331,0.76522553]
[1771840168090,8.69519203,80.36,80.331,0.76522553]
[1771840169420,8.69519203,80.37,80.333,0.76522553]
[1771840170116,12.44240113,80.371,80.335,0.76522553]
[1771840172303,12.44240113,80.371,80.341,0.76522553]
[1771840172811,3.69383402,80.389,80.336,12.44771957]
[1771840172812,0.46006543,80.395,80.361,0.76522553]
[1771840173000,8.79519203,80.39,80.361,0.76522553]
[1771840173601,12.43951286,80.389,80.361,0.76522553]
[1771840173812,12.43951286,80.389,80.363,0.76522553]
[1771840174113,0.1,80.39,80.363,0.76522553]
[1771840174509,0.1,80.39,80.362,43.55292302]
[1771840174510,0.1,80.39,80.371,0.76522553]
[1771840175218,0.45262921,80.389,80.362,0.76522553]
[1771840176116,12.89214207,80.389,80.362,0.76522553]
[1771840176804,0.1,80.39,80.364,0.76522553]
[1771840177005,0.1,80.39,80.371,0.76522553]
[1771840180224,31.09336716,80.403,80.369,12.44253453]
[1771840180225,0.78140761,80.424,80.388,0.76522553]
[1771840180528,0.78140761,80.419,80.388,0.76522553]
[1771840180727,0.78140761,80.419,80.391,0.76522553]
[1771840181109,0.78140761,80.427,80.391,0.76522553]
[1771840181804,0.78140761,80.417,80.391,0.76522553]
[1771840182008,0.78140761,80.417,80.388,13.20482803]
[1771840182314,0.78140761,80.417,80.389,0.76522553]
[1771840185429,0.78140761,80.415,80.389,0.76522553]
[1771840186530,0.78140761,80.415,80.39,12.43935812]
[1771840188207,62.15586462,80.443,80.375,0.77072155]
[1771840188208,0.70278531,80.399,80.375,0.77072155]
[1771840188532,0.70278531,80.399,80.368,0.77072155]
[1771840189529,8.67745556,80.41,80.371,0.77072155]
[1771840189712,0.70278531,80.409,80.371,0.77072155]
[1771840190224,0.70278531,80.407,80.373,0.77072155]
[1771840192421,8.67745556,80.41,80.36,0.77072155]
[1771840192422,0.70278531,80.389,80.36,0.77072155]
[1771840192826,8.67745556,80.38,80.36,0.77072155]
[1771840193444,0.70278531,80.383,80.36,0.77072155]
[1771840194837,12.43980992,80.388,80.362,0.77072155]
[1771840195044,0.70278531,80.396,80.362,0.77072155]
[1771840195416,12.43858448,80.395,80.362,0.77072155]
[1771840195621,0.70278531,80.394,80.362,0.77072155]
[1771840196440,0.70278531,80.389,80.362,0.77072155]
[1771840197448,12.43966761,80.388,80.362,0.77072155]
[1771840197648,0.70278531,80.387,80.362,0.77072155]
[1771840198543,0.70278531,80.387,80.304,49.81034369]
[1771840198544,8.67745556,80.4,80.364,0.77072155]
[1771840198739,12.43781094,80.4,80.371,0.77072155]
[1771840199332,0.70278531,80.416,80.381,0.77072155]
[1771840199529,12.43549089,80.415,80.383,0.77072155]
[1771840199848,8.67745556,80.42,80.383,0.77072155]
[1771840200048,0.70278531,80.428,80.401,0.77072155]
[1771840200347,0.70278531,80.436,80.41,8.67745556]
[1771840200525,0.70278531,80.436,80.411,0.77072155]
[1771840200718,0.70278531,80.436,80.397,0.77072155]
[1771840200719,8.67745556,80.43,80.397,0.77072155]
[1771840200946,0.70278531,80.429,80.383,0.77072155]
[1771840201242,0.70278531,80.389,80.328,0.77072155]
[1771840201437,9.38024087,80.38,80.331,0.77072155]
[1771840201643,12.44002016,80.386,80.342,0.77072155]
[1771840201826,8.67745556,80.37,80.342,0.77072155]
[1771840202026,0.70278531,80.359,80.32,8.67745556]
[1771840202729,0.70278531,80.369,80.34,8.67745556]
[1771840202933,0.70278531,80.382,80.35,8.67745556]
[1771840203741,0.70278531,80.379,80.34,8.67745556]
[1771840203948,0.70278531,80.369,80.306,0.77072155]
[1771840204124,0.70278531,80.369,80.331,0.77072155]
[1771840206141,0.70278531,80.359,80.328,12.44893874]
[1771840206443,0.70278531,80.359,80.329,0.77072155]
[1771840207229,0.70278531,80.389,80.35,8.914523]
[1771840207431,0.70278531,80.379,80.35,0.23706744]
[1771840208234,0.70278531,80.377,80.349,12.44560178]
[1771840208640,0.70278531,80.377,80.342,0.23551148]
[1771840208847,0.70278531,80.369,80.332,0.23551148]
[1771840209024,0.70278531,80.369,80.341,0.23551148]
[1771840210330,0.70278531,80.359,80.327,0.23245299]
[1771840210825,0.70278531,80.349,80.31,8.68726575]
[1771840211031,0.70278531,80.349,80.289,12.45500628]
[1771840211032,0.70278531,80.339,80.306,0.23245299]
[1771840212631,0.70278531,80.329,80.299,12.45340324]
[1771840215140,0.70278531,80.329,80.289,31.13751572]
[1771840215141,8.68726575,80.32,80.289,0.2184671]
[1771840215449,0.70278531,80.319,80.29,21.14211691]
[1771840215654,0.70278531,80.319,80.291,0.21440134]
[1771840216045,0.70278531,80.331,80.3,8.68726575]
[1771840216554,0.70278531,80.329,80.297,0.21440134]
[1771840217359,12.44895926,80.328,80.3,8.68726575]
[1771840217536,12.44895926,80.328,80.3,8.89367512]
[1771840217859,0.70278531,80.329,80.301,0.19859995]
[1771840218649,0.67579655,80.345,80.311,0.19476238]
[1771840219233,12.4457056,80.349,80.311,0.19476238]
[1771840219234,0.67579655,80.339,80.311,0.19476238]
[1771840220057,0.67579655,80.337,80.304,12.45266714]
[1771840220734,8.68726575,80.33,80.3,12.45326589]
[1771840220936,0.67579655,80.329,80.3,12.45326589]
[1771840221849,0.67579655,80.327,80.29,0.18351213]
[1771840222061,0.67579655,80.319,80.283,0.18351213]
[1771840222557,0.67579655,80.319,80.291,0.17984786]
[1771840222859,0.67579655,80.319,80.284,0.17984786]
[1771840223748,0.67579655,80.319,80.276,12.45702326]
[1771840223749,8.68726575,80.31,80.276,12.45702326]
[1771840223947,8.68726575,80.31,80.244,49.84757709]
[1771840223948,8.68726575,80.3,80.269,12.45801728]
[1771840224150,0.67579655,80.299,80.261,12.45935136]
[1771840224455,0.67579655,80.299,80.262,0.1726451]
[1771840224682,0.67579655,80.299,80.27,8.68726575]
[1771840224849,0.67579655,80.299,80.271,0.1726451]
[1771840226762,0.67579655,80.307,80.272,0.16560685]
[1771840226951,0.67579655,80.315,80.281,0.16560685]
[1771840227346,0.67579655,80.315,80.29,8.68726575]
[1771840227546,0.67579655,80.315,80.288,0.16214824]
[1771840227859,0.67579655,80.315,80.281,0.16214824]
[1771840228949,0.67579655,80.313,80.272,0.15872935]
[1771840229151,0.67579655,80.313,80.244,105.92692286]
[1771840229152,0.67579655,80.313,80.28,8.68726575]
[1771840229555,0.67579655,80.313,80.281,0.15534974]
[1771840229757,0.67579655,80.313,80.29,8.68726575]
[1771840229957,0.67579655,80.313,80.28,8.68726575]
[1771840230155,0.67579655,80.313,80.28,8.84261549]
[1771840230345,0.67579655,80.313,80.281,0.15200894]
[1771840231368,0.67579655,80.311,80.281,12.60825637]
[1771840233548,0.67579655,80.299,80.267,0.14221502]
[1771840233948,0.67579655,80.299,80.27,8.68726575]
[1771840234363,0.67579655,80.299,80.267,0.14221502]
[1771840234561,0.67579655,80.299,80.27,8.68726575]
[1771840235352,0.67579655,80.297,80.27,8.68726575]
[1771840235552,0.67579655,80.297,80.267,0.14221502]
[1771840235758,0.67579655,80.297,80.27,8.68726575]
[1771840236071,0.67579655,80.297,80.246,0.1358718]
[1771840236365,0.67579655,80.288,80.261,0.13275473]
[1771840237474,0.67579655,80.287,80.261,12.59210609]
[1771840238055,0.67579655,80.279,80.24,8.88726575]
[1771840238261,12.45530254,80.288,80.24,0.2]
[1771840238262,0.67579655,80.269,80.24,0.2]
[1771840239577,0.67579655,80.267,80.241,12.46245684]
[1771840240778,12.45695341,80.277,80.242,0.12064037]
[1771840241164,0.67579655,80.276,80.242,0.12064037]
[1771840241472,3.69383402,80.295,80.241,12.46245684]
[1771840241473,0.67579655,80.287,80.26,8.68726575]
[1771840241776,0.67579655,80.287,80.261,12.45935136]
[1771840243279,0.67579655,80.296,80.27,8.68726575]
[1771840243658,0.67579655,80.296,80.271,12.4577992]
[1771840245975,0.67579655,80.296,80.262,0.11478991]
[1771840250154,0.67579655,80.296,80.27,8.68726575]
[1771840250354,2.47215037,101.99,80.27,8.68726575]
[1771840250355,0.67134802,80.303,80.271,0.09007301]
[1771840250876,0.67134802,80.303,80.28,8.68726575]
[1771840251555,0.67134802,80.303,80.271,0.09007301]
[1771840252277,0.67134802,80.303,80.28,8.68726575]
[1771840253278,0.67134802,80.303,80.28,3.4798776]
[1771840253665,0.67134802,80.303,80.271,0.09007301]
[1771840254068,3.4798776,80.31,80.271,0.09007301]
[1771840254069,0.67134802,80.301,80.271,0.09007301]
[1771840254963,0.67134802,80.312,80.28,3.4798776]
[1771840255167,0.67134802,80.319,80.291,0.07988609]
[1771840255362,12.44768403,80.337,80.301,0.68323045]
[1771840256077,12.44678069,80.343,80.31,3.4798776]
[1771840256486,3.4798776,80.34,80.307,0.68323045]
[1771840257374,0.67134802,80.339,80.308,12.45205957]
[1771840258667,0.67134802,80.339,80.311,12.45159442]
[1771840263773,0.67134802,80.339,80.313,12.45128434]
[1771840264174,0.67134802,80.339,80.314,0.68323045]
[1771840265490,0.67134802,80.339,80.315,12.45097428]
[1771840265693,0.67134802,80.339,80.316,0.68323045]
[1771840270097,0.67134802,80.338,80.311,12.45159442]
[1771840270301,0.67134802,80.338,80.311,13.13482487]
[1771840270981,0.67134802,80.338,80.312,0.68323045]
[1771840271181,0.67134802,80.338,80.313,12.45128434]
[1771840272276,0.67134802,80.338,80.313,13.13451479]
[1771840274483,12.44676996,80.343,80.32,8.69295723]
[1771840274686,0.67134802,80.349,80.321,0.68323045]
[1771840274891,0.67134802,80.356,80.331,0.68323045]
[1771840276403,0.67134802,80.381,80.351,0.68323045]
[1771840276590,0.67134802,80.38,80.352,13.12847138]
[1771840277207,0.67134802,80.38,80.314,3.69383402]
[1771840277208,0.67134802,80.379,80.341,12.44694489]
[1771840278678,0.63336519,80.369,80.341,12.44694489]
[1771840280285,0.63336519,80.369,80.341,13.08587581]
[1771840280485,0.63336519,80.369,80.342,0.63893092]
[1771840281101,0.63336519,80.367,80.342,0.63893092]
[1771840281402,31.10303814,80.378,79.891,197.9948333]
[1771840281403,4.10819732,80.36,80.33,3.47483213]
[1771840281587,0.63336519,80.36,80.331,0.63893092]
[1771840284503,0.63336519,80.367,80.333,0.63893092]
[1771840285501,0.63336519,80.367,80.332,43.56918786]
[1771840285502,0.63336519,80.373,80.341,0.63893092]
[1771840286089,3.47483213,80.36,80.332,43.56918786]
[1771840286306,0.63336519,80.359,80.332,43.56918786]
[1771840286509,0.63336519,80.388,80.34,3.47483213]
[1771840286712,0.63336519,80.379,80.341,0.63893092]
[1771840287410,0.63336519,80.369,80.341,0.63893092]
[1771840287989,0.63336519,80.369,80.335,0.63893092]
[1771840288194,0.63336519,80.359,80.332,12.44833939]
[1771840288597,0.63336519,80.371,80.333,0.63893092]
[1771840288904,0.63336519,80.371,80.341,0.63893092]
[1771840291621,0.63336519,80.371,80.343,0.63893092]
[1771840292317,0.63336519,80.369,80.343,0.63893092]
[1771840293313,3.47483213,80.36,80.323,0.63893092]
[1771840293510,0.63336519,80.359,80.324,0.63893092]
[1771840293712,0.63336519,80.359,80.326,0.63893092]
[1771840293918,0.63336519,80.359,80.331,0.63893092]
[1771840294713,0.63336519,80.357,80.331,0.63893092]
[1771840296219,0.63336519,80.355,80.332,13.08727031]
[1771840298015,0.63336519,80.355,80.332,12.44833939]
[1771840298214,0.63336519,80.355,80.326,12.44926922]
[1771840298411,0.63336519,80.355,80.326,13.08820014]
[1771840298725,0.63336519,80.355,80.327,0.63893092]
[1771840301023,0.63336519,80.355,80.32,3.47483213]
[1771840301024,0.63336519,80.355,80.331,0.63893092]
[1771840301336,0.63336519,80.355,80.315,0.63893092]
[1771840301507,0.63336519,80.357,80.319,0.63893092]
[1771840301710,0.63336519,80.357,80.331,0.63893092]
[1771840303332,0.63336519,80.357,80.332,12.44833939]
[1771840304513,0.63336519,80.357,80.333,0.63880411]
[1771840304918,0.63336519,80.356,80.333,0.63880411]
[1771840305714,0.63336519,80.356,80.334,12.44802947]
[1771840305912,0.63336519,80.356,80.335,0.63719904]
[1771840307104,0.63336519,80.356,80.336,12.44771957]
[1771840309902,0.59082771,80.362,80.341,0.61155267]
[1771840310318,0.59082771,80.369,80.341,0.61155267]
[1771840315023,0.59082771,80.369,80.343,0.61155267]
[1771840315522,0.59082771,80.373,80.343,0.61155267]
[1771840315729,0.59082771,80.389,80.351,0.61155267]
[1771840315920,0.59082771,80.388,80.351,0.61155267]
[1771840316524,3.47483213,80.38,80.342,13.05834264]
[1771840316822,0.59082771,80.379,80.342,13.05834264]
[1771840317722,0.59082771,80.377,80.343,0.61155267]
[1771840317924,0.59082771,80.377,80.342,43.5637649]
[1771840318127,0.59082771,80.377,80.343,0.61155267]
[1771840318634,12.4405733,80.383,80.351,0.61155267]
[1771840318812,3.47483213,80.41,80.371,0.61155267]
[1771840320035,3.47483213,80.4,80.36,4.0863848]
[1771840320233,3.47483213,80.4,80.361,0.61155267]
[1771840320921,0.59082771,80.399,80.361,0.61155267]
[1771840321935,0.59082771,80.397,80.363,0.61155267]
[1771840322732,3.69383402,80.415,80.362,12.44369229]
[1771840322733,0.59082771,80.404,80.381,0.61155267]
[1771840322934,13.02684357,80.412,80.391,0.61155267]
[1771840323117,0.59082771,80.411,80.38,3.47483213]
[1771840323317,0.59082771,80.411,80.381,0.61155267]
[1771840324231,0.59082771,80.411,80.382,12.44059615]
[1771840324433,31.08353658,80.429,80.391,0.61155267]
[1771840324616,0.59082771,80.423,80.4,3.47483213]
[1771840324815,0.59082771,80.423,80.392,0.61155267]
[1771840326033,0.59082771,80.423,80.39,3.47483213]
[1771840326437,0.59082771,80.421,80.392,0.61155267]
[1771840327147,0.59082771,80.421,80.39,3.47483213]
[1771840327842,0.59082771,80.421,80.391,0.61155267]
[1771840331227,12.43471773,80.42,80.391,0.61155267]
[1771840331428,0.59082771,80.419,80.391,0.61155267]
[1771840332222,0.59082771,80.419,80.393,0.61155267]
[1771840335233,0.59082771,80.419,80.395,0.61155267]
[1771840336845,0.59082771,80.417,80.395,0.61155267]
[1771840340244,0.54679904,80.415,80.388,0.58267578]
[1771840340440,0.54679904,80.415,80.372,31.10514094]
[1771840340441,0.54679904,80.415,80.382,0.58267578]
[1771840340631,0.54679904,80.409,80.382,0.58267578]
[1771840342029,12.43332628,80.429,80.382,0.58267578]
[1771840342231,0.54679904,80.428,80.391,0.58267578]
[1771840342547,0.54679904,80.426,80.393,0.58267578]
[1771840344848,0.54679904,80.424,80.395,0.58267578]
[1771840347636,0.54679904,80.419,80.386,0.58267578]
[1771840348837,0.54679904,80.417,80.386,0.58267578]
[1771840351940,0.54679904,80.429,80.391,0.58267578]
[1771840352142,0.54679904,80.428,80.391,0.58267578]
[1771840353153,0.54679904,80.446,80.421,0.58267578]
[1771840353358,0.54679904,80.452,80.431,0.58267578]
[1771840353961,0.54679904,80.444,80.426,12.43368155]
[1771840355441,0.54679904,80.444,80.42,3.47023891]
[1771840355442,0.54679904,80.449,80.427,0.58267578]
[1771840355647,0.1,80.46,80.441,0.58267578]
[1771840355858,0.64679904,80.46,80.435,0.58267578]
[1771840356647,0.1,80.46,80.441,0.58267578]
[1771840359548,0.1,80.46,80.443,0.58267578]
[1771840360062,0.1,80.46,80.451,0.58267578]
[1771840360976,0.54679904,80.518,80.451,0.58267578]
[1771840361278,0.54679904,80.515,80.49,3.47023891]
[1771840361455,0.54679904,80.515,80.491,12.42374923]
[1771840361656,0.54679904,80.515,80.492,0.58267578]
[1771840362167,0.54679904,80.515,80.491,12.42374923]
[1771840362168,0.54679904,80.523,80.501,0.58267578]
[1771840363379,0.54679904,80.519,80.487,12.42433243]
[1771840363961,0.54679904,80.519,80.487,13.00700821]
[1771840364160,0.54679904,80.519,80.49,3.47023891]
[1771840365370,0.54679904,80.529,80.501,0.58267578]
[1771840366472,0.54679904,80.529,80.51,3.47023891]
[1771840366776,0.54679904,80.529,80.51,0.58267578]
[1771840367948,0.54679904,80.529,80.503,0.56777315]
[1771840368175,0.56699639,80.519,80.491,12.42372009]
[1771840368561,31.04283005,80.534,80.481,43.48852523]
[1771840368562,0.56699639,80.517,80.481,43.48852523]
[1771840368761,0.56699639,80.517,80.49,4.03801206]
[1771840369072,0.56699639,80.517,80.491,0.56777315]
[1771840371384,0.56699639,80.517,80.492,12.99136804]
[1771840372854,0.56699639,80.509,80.48,0.56777315]
[1771840373562,0.56699639,80.509,80.481,0.56777315]
[1771840374463,3.47023891,80.51,80.481,0.56777315]
[1771840374670,0.56699639,80.509,80.475,0.56777315]
[1771840374869,12.42112585,80.508,80.477,0.56777315]
[1771840375183,0.56699639,80.507,80.477,0.56777315]
[1771840376068,0.56699639,80.499,80.477,0.56777315]
[1771840376385,0.56699639,80.489,80.464,12.9956192]
[1771840376562,0.56699639,80.489,80.464,0.56777315]
[1771840376981,0.56699639,80.487,80.464,0.56777315]
[1771840378093,0.56699639,80.487,80.465,12.42776362]
[1771840378288,0.56699639,80.487,80.466,0.56777315]
[1771840378472,0.56699639,80.492,80.466,0.56777315]
[1771840380264,0.56699639,80.492,80.423,99.47360724]
[1771840380265,3.47023891,80.48,80.446,0.56777315]
[1771840380478,0.56699639,80.469,80.44,0.56777315]
[1771840380982,0.56699639,80.451,80.427,0.56777315]
[1771840381561,3.69383402,80.488,80.4,3.47023891]
[1771840381562,0.56699639,80.439,80.4,3.47023891]
[1771840381780,0.56699639,80.439,80.401,0.56777315]
[1771840382383,0.56699639,80.437,80.403,0.56777315]
[1771840383692,0.56699639,80.429,80.398,12.43804972]
[1771840384188,0.56699639,80.429,80.4,12.43781094]
[1771840384785,0.56699639,80.444,80.411,0.56777315]
[1771840384987,0.56699639,80.469,80.431,0.56777315]
[1771840385295,0.56699639,80.487,80.46,4.03801206]
[1771840385789,0.56699639,80.487,80.46,0.56777315]
[1771840386286,3.47023891,80.48,80.443,0.56777315]
[1771840386489,0.56699639,80.494,80.461,0.56777315]
[1771840386686,0.56699639,80.492,80.461,0.56777315]
[1771840387886,0.56699639,80.492,80.463,0.56777315]
[1771840388276,0.56699639,80.489,80.454,0.56777315]
[1771840388574,0.56699639,80.479,80.446,0.56777315]
[1771840388774,0.56699639,80.479,80.45,8.6599936]
[1771840388971,0.56699639,80.479,80.451,0.56777315]
[1771840389280,0.56699639,80.499,80.461,0.56777315]
[1771840389685,0.56699639,80.499,80.46,8.6599936]
[1771840390085,0.56699639,80.489,80.454,0.56777315]
[1771840390392,0.56699639,80.489,80.461,0.56777315]
[1771840391095,0.56699639,80.489,80.462,12.42822698]
[1771840391271,0.56699639,80.489,80.463,0.56777315]
[1771840392999,0.56699639,80.489,80.447,31.07636083]
[1771840393000,0.56699639,80.487,80.45,8.65921075]
[1771840393170,0.56699639,80.485,80.45,8.65921075]
[1771840393376,0.56699639,80.485,80.447,31.07636083]
[1771840393683,0.56699639,80.485,80.45,8.65921075]
[1771840393886,0.56699639,80.485,80.451,12.42992629]
[1771840394087,8.65921075,80.48,80.446,12.43061045]
[1771840394283,0.56699639,80.479,80.446,12.43061045]
[1771840394795,0.56699639,80.479,80.44,8.65921075]
[1771840394796,0.56699639,80.479,80.441,12.43131999]
[1771840395608,0.56699639,80.479,80.44,8.65921075]
[1771840395609,0.56699639,80.469,80.44,8.65921075]
[1771840397673,0.56699639,80.469,80.408,49.74617662]
[1771840397674,0.55126123,80.502,80.442,0.33392072]
[1771840397990,0.55126123,80.502,80.471,0.33392072]
[1771840398778,0.55126123,80.502,80.48,8.65921075]
[1771840400202,0.55126123,80.502,80.469,12.42714585]
[1771840400405,0.529553,80.5,80.47,8.65921075]
[1771840401686,12.42071763,80.511,80.48,8.65921075]
[1771840401887,0.529553,80.507,80.48,8.65921075]
[1771840402388,0.529553,80.506,80.48,8.65921075]
[1771840402800,0.529553,80.506,80.47,52.15368073]
[1771840402999,0.529553,80.506,80.47,21.08620217]
[1771840403501,0.529553,80.506,80.47,52.49074561]
[1771840403908,0.529553,80.499,80.465,0.33706488]
[1771840404110,0.529553,80.499,80.47,8.65921075]
[1771840404488,0.529553,80.498,80.471,12.42683699]
[1771840407794,0.529553,80.498,80.47,8.65921075]
[1771840407795,0.529553,80.496,80.47,8.65921075]
[1771840408111,0.529553,80.496,80.465,12.42773163]
[1771840408308,0.529553,80.496,80.47,8.65921075]
[1771840409095,0.529553,80.502,80.48,8.65921075]
[1771840409402,0.529553,80.502,80.471,0.33916003]
[1771840409800,0.529553,80.5,80.47,3.46263481]
[1771840410004,0.529553,80.499,80.464,12.4277877]
[1771840410308,0.529553,80.499,80.47,3.46263481]
[1771840410813,0.529553,80.5,80.48,3.46263481]
[1771840411902,0.529553,80.5,80.475,12.7661725]
[1771840412711,0.529553,80.5,80.48,3.46263481]
[1771840413313,0.529553,80.5,80.476,0.34075117]
[1771840414609,0.529553,80.507,80.481,0.34151958]
[1771840418011,0.529553,80.518,80.483,0.34263942]
[1771840421311,0.529553,80.518,80.455,62.14634292]
[1771840421312,0.529553,80.499,80.461,0.34407343]
[1771840422518,12.42266888,80.498,80.462,12.42822698]
[1771840422720,0.529553,80.497,80.462,12.42822698]
[1771840423024,0.529553,80.497,80.463,0.3444217]
[1771840423521,0.529553,80.489,80.463,0.3444217]
[1771840423719,0.529553,80.479,80.451,0.34476597]
[1771840424714,0.529553,80.479,80.453,0.34510628]
[1771840424907,0.529553,80.489,80.461,0.34510628]
[1771840425509,0.529553,80.495,80.461,0.34510628]
[1771840426512,0.529553,80.495,80.471,0.34577522]
[1771840426720,0.529553,80.509,80.471,0.34577522]
[1771840427410,0.529553,80.508,80.471,0.34577522]
[1771840429241,0.529553,80.508,80.487,0.3467501]
[1771840429848,0.56102846,80.507,80.487,0.3467501]
[1771840430212,0.56102846,80.507,80.476,0.3473815]
[1771840430613,0.56102846,80.507,80.472,12.42668257]
[1771840430813,0.56102846,80.507,80.473,0.3473815]
[1771840431226,0.56102846,80.505,80.475,0.3473815]
[1771840431542,0.56102846,80.505,80.48,3.81032658]
[1771840431751,0.56102846,80.505,80.481,0.34769177]
[1771840434122,0.56102846,80.503,80.474,12.42632556]
[1771840434637,0.56102846,80.503,80.47,15.88957831]
[1771840435622,0.56102846,80.503,80.47,16.23847594]
[1771840435822,0.56102846,80.499,80.464,12.42784933]
[1771840436040,0.56102846,80.497,80.465,0.34889763]
[1771840437945,0.56102846,80.497,80.46,12.42841096]